[Event "Titled Tuesday Blitz December 27 Early 2022"]
[White "Rustemov, Alexander"]
[Black "Guliev, Logman"]
[WhiteFideId "4119002"]
[BlackFideId "13400061"]
[WhiteElo "2525"]
[BlackElo "2250"]
[Result "1-0"]
[Round "10"]
[TimeControl "180+2"]
[Date "2022.12.27"]
[WhiteClock "0:00:13"]
[BlackClock "0:00:03"]

1. d4 {[%clk 0:03:00]}  Nf6 {[%clk 0:02:59]} 2. c4 {[%clk 0:03:00]}  e6 {[%clk 0:02:59]} 3. Nf3 {[%clk 0:03:00]}  Bb4+ {[%clk 0:02:59]} 4. Bd2 {[%clk 0:03:00]}  c5 {[%clk 0:03:00]} 5. Bxb4 {[%clk 0:02:59]}  cxb4 {[%clk 0:03:01]} 6. g3 {[%clk 0:03:00]}  b6 {[%clk 0:02:57]} 7. Bg2 {[%clk 0:03:00]}  Bb7 {[%clk 0:02:58]} 8. O-O {[%clk 0:02:59]}  O-O {[%clk 0:02:58]} 9. Qd3 {[%clk 0:02:58]}  d6 {[%clk 0:02:58]} 10. a3 {[%clk 0:02:56]}  bxa3 {[%clk 0:02:56]} 11. Rxa3 {[%clk 0:02:43]}  Nc6 {[%clk 0:02:51]} 12. Nc3 {[%clk 0:02:40]}  e5 {[%clk 0:02:45]} 13. dxe5 {[%clk 0:02:33]}  dxe5 {[%clk 0:02:37]} 14. Nxe5 {[%clk 0:02:28]}  Nxe5 {[%clk 0:02:30]} 15. Qxd8 {[%clk 0:02:27]}  Raxd8 {[%clk 0:02:17]} 16. Bxb7 {[%clk 0:02:26]}  Nxc4 {[%clk 0:02:17]} 17. Rxa7 {[%clk 0:02:20]}  Rd7 {[%clk 0:02:07]} 18. Rfa1 {[%clk 0:02:17]}  Na5 {[%clk 0:02:00]} 19. R7xa5 {[%clk 0:01:43]}  bxa5 {[%clk 0:01:58]} 20. Bf3 {[%clk 0:01:24]}  Ra7 {[%clk 0:01:54]} 21. b4 {[%clk 0:01:23]}  a4 {[%clk 0:01:19]} 22. b5 {[%clk 0:01:23]}  a3 {[%clk 0:01:13]} 23. b6 {[%clk 0:01:23]}  Ra5 {[%clk 0:01:13]} 24. b7 {[%clk 0:01:18]}  Nd7 {[%clk 0:01:07]} 25. Nb1 {[%clk 0:01:17]}  a2 {[%clk 0:00:54]} 26. Nc3 {[%clk 0:01:17]}  Ra3 {[%clk 0:00:54]} 27. Nb5 {[%clk 0:01:12]}  Rb3 {[%clk 0:00:50]} 28. Rxa2 {[%clk 0:01:10]}  Rxb5 {[%clk 0:00:50]} 29. Ra8 {[%clk 0:01:05]}  Nb8 {[%clk 0:00:49]} 30. Kf1 {[%clk 0:01:00]}  Rd8 {[%clk 0:00:47]} 31. h4 {[%clk 0:00:59]}  Kf8 {[%clk 0:00:47]} 32. Kg2 {[%clk 0:00:56]}  Ke7 {[%clk 0:00:47]} 33. Ra3 {[%clk 0:00:53]}  g6 {[%clk 0:00:42]} 34. Re3+ {[%clk 0:00:52]}  Kf6 {[%clk 0:00:40]} 35. Rc3 {[%clk 0:00:53]}  Rb4 {[%clk 0:00:35]} 36. g4 {[%clk 0:00:52]}  h6 {[%clk 0:00:34]} 37. Rc7 {[%clk 0:00:51]}  Rbd4 {[%clk 0:00:33]} 38. Kg3 {[%clk 0:00:47]}  g5 {[%clk 0:00:33]} 39. h5 {[%clk 0:00:44]}  Ke6 {[%clk 0:00:31]} 40. e3 {[%clk 0:00:42]}  R4d6 {[%clk 0:00:30]} 41. Be4 {[%clk 0:00:41]}  Kf6 {[%clk 0:00:26]} 42. f4 {[%clk 0:00:39]}  Re6 {[%clk 0:00:22]} 43. Kf3 {[%clk 0:00:31]}  Rde8 {[%clk 0:00:22]} 44. Rc4 {[%clk 0:00:30]}  Nd7 {[%clk 0:00:18]} 45. Rb4 {[%clk 0:00:20]}  Rb6 {[%clk 0:00:16]} 46. Rc4 {[%clk 0:00:17]}  Rb3 {[%clk 0:00:13]} 47. Rc8 {[%clk 0:00:15]}  Ke7 {[%clk 0:00:11]} 48. Bc6 {[%clk 0:00:15]}  Rd3 {[%clk 0:00:10]} 49. Ke2 {[%clk 0:00:13]}  Rd6 {[%clk 0:00:06]} 50. Rxe8+ {[%clk 0:00:12]}  Kxe8 {[%clk 0:00:05]} 51. b8=Q+ {[%clk 0:00:13]}  Ke7 {[%clk 0:00:03]} 52. Qc7 {[%clk 0:00:13]} 1-0


[Site "https://www.chess.com"]

[Event "Titled Tuesday Blitz December 27 Early 2022"]
[White "Slaby, Jerzy"]
[Black "Cella, Glaucio Dalla Cortt"]
[WhiteFideId "1121405"]
[BlackFideId "2119455"]
[WhiteElo "2469"]
[BlackElo "1894"]
[Result "0-1"]
[Round "10"]
[TimeControl "180+2"]
[Date "2022.12.27"]
[WhiteClock "0:00:31"]
[BlackClock "0:01:19"]

1. e4 {[%clk 0:03:00]}  c5 {[%clk 0:02:56]} 2. c3 {[%clk 0:03:00]}  e6 {[%clk 0:02:57]} 3. d4 {[%clk 0:03:00]}  Nf6 {[%clk 0:02:56]} 4. e5 {[%clk 0:02:59]}  Nd5 {[%clk 0:02:56]} 5. Nf3 {[%clk 0:02:59]}  d6 {[%clk 0:02:56]} 6. Bc4 {[%clk 0:02:57]}  Nc6 {[%clk 0:02:54]} 7. O-O {[%clk 0:02:56]}  Be7 {[%clk 0:02:41]} 8. exd6 {[%clk 0:02:43]}  Bxd6 {[%clk 0:02:37]} 9. Bxd5 {[%clk 0:02:39]}  exd5 {[%clk 0:02:32]} 10. Re1+ {[%clk 0:02:39]}  Be6 {[%clk 0:02:26]} 11. Ng5 {[%clk 0:02:34]}  O-O {[%clk 0:02:26]} 12. Rxe6 {[%clk 0:01:58]}  fxe6 {[%clk 0:02:27]} 13. Nxe6 {[%clk 0:01:58]}  Bxh2+ {[%clk 0:02:16]} 14. Kf1 {[%clk 0:01:46]}  Qh4 {[%clk 0:02:12]} 15. Nxf8 {[%clk 0:01:45]}  Rxf8 {[%clk 0:02:10]} 16. Be3 {[%clk 0:01:45]}  Bg3 {[%clk 0:02:04]} 17. Qd2 {[%clk 0:00:52]}  cxd4 {[%clk 0:02:04]} 18. cxd4 {[%clk 0:00:49]}  Qh1+ {[%clk 0:02:04]} 19. Ke2 {[%clk 0:00:48]}  Qxg2 {[%clk 0:02:02]} 20. Qe1 {[%clk 0:00:39]}  Bxf2 {[%clk 0:01:34]} 21. Bxf2 {[%clk 0:00:33]}  Re8+ {[%clk 0:01:33]} 22. Kd2 {[%clk 0:00:30]}  Rxe1 {[%clk 0:01:29]} 23. Kxe1 {[%clk 0:00:31]}  Nb4 {[%clk 0:01:19]} 0-1


[Site "https://www.chess.com"]

[Event "Titled Tuesday Blitz December 27 Early 2022"]
[White "Tan, Zhongyi"]
[Black "Lenderman, Aleksandr"]
[WhiteFideId "8603642"]
[BlackFideId "2021285"]
[WhiteElo "2517"]
[BlackElo "2572"]
[Result "0-1"]
[Round "10"]
[TimeControl "180+2"]
[Date "2022.12.27"]
[WhiteClock "0:00:01"]
[BlackClock "0:00:07"]

1. d4 {[%clk 0:03:00]}  e6 {[%clk 0:03:00]} 2. c4 {[%clk 0:03:00]}  b6 {[%clk 0:03:00]} 3. Nc3 {[%clk 0:03:00]}  Bb7 {[%clk 0:03:00]} 4. a3 {[%clk 0:02:59]}  f5 {[%clk 0:02:58]} 5. d5 {[%clk 0:02:58]}  Nf6 {[%clk 0:02:58]} 6. g3 {[%clk 0:02:57]}  Bd6 {[%clk 0:02:58]} 7. Bg2 {[%clk 0:02:57]}  O-O {[%clk 0:02:59]} 8. Nh3 {[%clk 0:02:57]}  Na6 {[%clk 0:02:59]} 9. O-O {[%clk 0:02:56]}  Nc5 {[%clk 0:02:57]} 10. Nb5 {[%clk 0:02:42]}  Be5 {[%clk 0:02:49]} 11. Bf4 {[%clk 0:02:14]}  Bxf4 {[%clk 0:02:45]} 12. Nxf4 {[%clk 0:02:15]}  e5 {[%clk 0:02:44]} 13. Nd3 {[%clk 0:02:13]}  Nxd3 {[%clk 0:02:43]} 14. Qxd3 {[%clk 0:02:14]}  g6 {[%clk 0:02:36]} 15. d6 {[%clk 0:01:57]}  c6 {[%clk 0:02:29]} 16. Nc3 {[%clk 0:01:49]}  Ba6 {[%clk 0:02:25]} 17. b4 {[%clk 0:01:46]}  Qe8 {[%clk 0:02:23]} 18. b5 {[%clk 0:01:45]}  Bb7 {[%clk 0:02:24]} 19. bxc6 {[%clk 0:01:37]}  dxc6 {[%clk 0:02:21]} 20. c5 {[%clk 0:01:36]}  Qe6 {[%clk 0:02:16]} 21. Rab1 {[%clk 0:01:32]}  Nd7 {[%clk 0:02:15]} 22. cxb6 {[%clk 0:01:27]}  axb6 {[%clk 0:02:14]} 23. a4 {[%clk 0:01:19]}  e4 {[%clk 0:01:55]} 24. Qd2 {[%clk 0:01:14]}  Ra5 {[%clk 0:01:44]} 25. Rfd1 {[%clk 0:01:12]}  Re5 {[%clk 0:01:41]} 26. e3 {[%clk 0:01:11]}  Ra8 {[%clk 0:01:39]} 27. Bf1 {[%clk 0:01:07]}  Kg7 {[%clk 0:01:39]} 28. Qb2 {[%clk 0:01:02]}  Qf6 {[%clk 0:01:37]} 29. Rd2 {[%clk 0:00:46]}  Rc5 {[%clk 0:01:36]} 30. Rc1 {[%clk 0:00:28]}  Rxa4 {[%clk 0:01:23]} 31. Nxa4 {[%clk 0:00:09]}  Qxb2 {[%clk 0:01:24]} 32. Rxb2 {[%clk 0:00:06]}  Rxc1 {[%clk 0:01:24]} 33. Nxb6 {[%clk 0:00:06]}  Ba6 {[%clk 0:01:24]} 34. Nxd7 {[%clk 0:00:03]}  Bxf1 {[%clk 0:01:24]} 35. f4 {[%clk 0:00:02]}  exf3 {[%clk 0:01:19]} 36. Kf2 {[%clk 0:00:02]}  Bg2 {[%clk 0:00:56]} 37. g4 {[%clk 0:00:02]}  Rd1 {[%clk 0:00:50]} 38. gxf5 {[%clk 0:00:01]}  gxf5 {[%clk 0:00:43]} 39. Rb7 {[%clk 0:00:02]}  Rxd6 {[%clk 0:00:43]} 40. Ne5+ {[%clk 0:00:02]}  Kf6 {[%clk 0:00:43]} 41. Nxf3 {[%clk 0:00:03]}  Bxf3 {[%clk 0:00:43]} 42. Kxf3 {[%clk 0:00:04]}  h6 {[%clk 0:00:38]} 43. Rc7 {[%clk 0:00:04]}  Ke5 {[%clk 0:00:37]} 44. h4 {[%clk 0:00:05]}  Re6 {[%clk 0:00:33]} 45. h5 {[%clk 0:00:02]}  Rf6 {[%clk 0:00:28]} 46. Rg7 {[%clk 0:00:02]}  c5 {[%clk 0:00:27]} 47. Ke2 {[%clk 0:00:03]}  Rc6 {[%clk 0:00:23]} 48. Kd3 {[%clk 0:00:02]}  c4+ {[%clk 0:00:23]} 49. Kc3 {[%clk 0:00:02]}  Ke4 {[%clk 0:00:24]} 50. Rg6 {[%clk 0:00:03]}  Rc5 {[%clk 0:00:18]} 51. Rxh6 {[%clk 0:00:03]}  Kxe3 {[%clk 0:00:18]} 52. Re6+ {[%clk 0:00:03]}  Kf3 {[%clk 0:00:17]} 53. h6 {[%clk 0:00:04]}  Rc8 {[%clk 0:00:17]} 54. h7 {[%clk 0:00:04]}  f4 {[%clk 0:00:17]} 55. Rh6 {[%clk 0:00:03]}  Rh8 {[%clk 0:00:16]} 56. Kxc4 {[%clk 0:00:04]}  Ke3 {[%clk 0:00:16]} 57. Kd5 {[%clk 0:00:05]}  f3 {[%clk 0:00:16]} 58. Re6+ {[%clk 0:00:05]}  Kd3 {[%clk 0:00:12]} 59. Rf6 {[%clk 0:00:05]}  Ke2 {[%clk 0:00:13]} 60. Re6+ {[%clk 0:00:05]}  Kf1 {[%clk 0:00:13]} 61. Re7 {[%clk 0:00:04]}  f2 {[%clk 0:00:13]} 62. Kd6 {[%clk 0:00:04]}  Kg2 {[%clk 0:00:07]} 63. Rg7+ {[%clk 0:00:04]}  Kh2 {[%clk 0:00:07]} 64. Rf7 {[%clk 0:00:05]}  Kg3 {[%clk 0:00:07]} 65. Rg7+ {[%clk 0:00:05]}  Kf4 {[%clk 0:00:08]} 66. Rf7+ {[%clk 0:00:06]}  Ke3 {[%clk 0:00:08]} 67. Re7+ {[%clk 0:00:06]}  Kd2 {[%clk 0:00:07]} 68. Rf7 {[%clk 0:00:06]}  Ke2 {[%clk 0:00:07]} 69. Re7+ {[%clk 0:00:06]}  Kf1 {[%clk 0:00:08]} 70. Rf7 {[%clk 0:00:07]}  Re8 {[%clk 0:00:07]} 71. Kd7 {[%clk 0:00:06]}  Ra8 {[%clk 0:00:07]} 72. Kd6 {[%clk 0:00:06]}  Ra6+ {[%clk 0:00:06]} 73. Kc5 {[%clk 0:00:06]}  Rh6 {[%clk 0:00:06]} 74. Kd5 {[%clk 0:00:05]}  Rh3 {[%clk 0:00:04]} 75. Kd4 {[%clk 0:00:04]}  Ke2 {[%clk 0:00:05]} 76. Re7+ {[%clk 0:00:05]}  Kd2 {[%clk 0:00:05]} 77. Rf7 {[%clk 0:00:05]}  Rh4+ {[%clk 0:00:05]} 78. Kd5 {[%clk 0:00:04]}  Ke3 {[%clk 0:00:05]} 79. Re7+ {[%clk 0:00:04]}  Kd3 {[%clk 0:00:06]} 80. Rf7 {[%clk 0:00:05]}  Rh5+ {[%clk 0:00:07]} 81. Kd6 {[%clk 0:00:04]}  Ke3 {[%clk 0:00:07]} 82. Re7+ {[%clk 0:00:05]}  Kd4 {[%clk 0:00:07]} 83. Rf7 {[%clk 0:00:05]}  Rh6+ {[%clk 0:00:08]} 84. Ke7 {[%clk 0:00:04]}  Rxh7 {[%clk 0:00:08]} 85. Rxh7 {[%clk 0:00:04]}  f1=Q {[%clk 0:00:09]} 86. Rh4+ {[%clk 0:00:05]}  Ke5 {[%clk 0:00:09]} 87. Rh5+ {[%clk 0:00:05]}  Ke4 {[%clk 0:00:09]} 88. Rh6 {[%clk 0:00:05]}  Qb5 {[%clk 0:00:07]} 89. Re6+ {[%clk 0:00:04]}  Kf5 {[%clk 0:00:06]} 90. Rf6+ {[%clk 0:00:05]}  Kg5 {[%clk 0:00:06]} 91. Rd6 {[%clk 0:00:04]}  Qc5 {[%clk 0:00:06]} 92. Ke6 {[%clk 0:00:04]}  Kf4 {[%clk 0:00:07]} 93. Rd7 {[%clk 0:00:03]}  Ke4 {[%clk 0:00:06]} 94. Rd6 {[%clk 0:00:03]}  Qf5+ {[%clk 0:00:06]} 95. Ke7 {[%clk 0:00:03]}  Ke5 {[%clk 0:00:07]} 96. Rc6 {[%clk 0:00:03]}  Qh7+ {[%clk 0:00:07]} 97. Kd8 {[%clk 0:00:02]}  Kd5 {[%clk 0:00:07]} 98. Ra6 {[%clk 0:00:01]}  Qb7 {[%clk 0:00:07]} 0-1


[Site "https://www.chess.com"]

[Event "Titled Tuesday Blitz December 27 Early 2022"]
[White "Toncheva, Nadya"]
[Black "Heinemann, Josefine"]
[WhiteFideId "2924056"]
[BlackFideId "12900460"]
[WhiteElo "2295"]
[BlackElo "2289"]
[Result "1-0"]
[Round "10"]
[TimeControl "180+2"]
[Date "2022.12.27"]
[WhiteClock "0:00:23"]
[BlackClock "0:00:14"]

1. d4 {[%clk 0:03:00]}  Nf6 {[%clk 0:02:59]} 2. c4 {[%clk 0:03:01]}  e6 {[%clk 0:02:57]} 3. Nc3 {[%clk 0:03:01]}  Bb4 {[%clk 0:02:56]} 4. e3 {[%clk 0:03:02]}  O-O {[%clk 0:02:55]} 5. Ne2 {[%clk 0:03:02]}  c6 {[%clk 0:02:54]} 6. Ng3 {[%clk 0:02:53]}  d5 {[%clk 0:02:52]} 7. Bd3 {[%clk 0:02:54]}  Re8 {[%clk 0:02:47]} 8. O-O {[%clk 0:02:54]}  Nbd7 {[%clk 0:02:43]} 9. Bd2 {[%clk 0:02:49]}  dxc4 {[%clk 0:02:40]} 10. Bxc4 {[%clk 0:02:48]}  c5 {[%clk 0:02:40]} 11. a3 {[%clk 0:02:43]}  Bxc3 {[%clk 0:02:38]} 12. Bxc3 {[%clk 0:02:38]}  cxd4 {[%clk 0:02:38]} 13. Qxd4 {[%clk 0:02:35]}  Nb6 {[%clk 0:02:37]} 14. Bb3 {[%clk 0:02:30]}  Qxd4 {[%clk 0:02:36]} 15. Bxd4 {[%clk 0:02:30]}  Bd7 {[%clk 0:02:35]} 16. Rac1 {[%clk 0:02:29]}  Bc6 {[%clk 0:02:36]} 17. Rfd1 {[%clk 0:02:24]}  Red8 {[%clk 0:02:33]} 18. Ne2 {[%clk 0:02:23]}  Bd5 {[%clk 0:02:27]} 19. Bxd5 {[%clk 0:02:19]}  Nbxd5 {[%clk 0:02:27]} 20. f3 {[%clk 0:02:12]}  b6 {[%clk 0:02:25]} 21. Kf2 {[%clk 0:02:12]}  Rac8 {[%clk 0:02:24]} 22. e4 {[%clk 0:02:11]}  Ne7 {[%clk 0:02:23]} 23. Ke3 {[%clk 0:02:06]}  Kf8 {[%clk 0:02:15]} 24. Rxc8 {[%clk 0:02:06]}  Rxc8 {[%clk 0:02:15]} 25. Bc3 {[%clk 0:02:06]}  Ke8 {[%clk 0:02:14]} 26. Nd4 {[%clk 0:02:03]}  a6 {[%clk 0:02:08]} 27. g4 {[%clk 0:01:55]}  Nc6 {[%clk 0:02:05]} 28. Ne2 {[%clk 0:01:51]}  Nd7 {[%clk 0:02:03]} 29. Bxg7 {[%clk 0:01:38]}  f6 {[%clk 0:02:03]} 30. g5 {[%clk 0:01:34]}  fxg5 {[%clk 0:02:02]} 31. Rg1 {[%clk 0:01:28]}  Na5 {[%clk 0:01:45]} 32. Rxg5 {[%clk 0:01:19]}  Rc2 {[%clk 0:01:44]} 33. Bc3 {[%clk 0:00:54]}  Nb3 {[%clk 0:01:30]} 34. Kd3 {[%clk 0:00:52]}  Na1 {[%clk 0:01:30]} 35. Rg8+ {[%clk 0:00:50]}  Kf7 {[%clk 0:01:29]} 36. Rg7+ {[%clk 0:00:48]}  Ke8 {[%clk 0:01:29]} 37. Rg1 {[%clk 0:00:48]}  Nc5+ {[%clk 0:01:28]} 38. Ke3 {[%clk 0:00:47]}  Nab3 {[%clk 0:01:27]} 39. Rg7 {[%clk 0:00:44]}  h5 {[%clk 0:01:22]} 40. Rh7 {[%clk 0:00:44]}  Nc1 {[%clk 0:01:18]} 41. Nxc1 {[%clk 0:00:42]}  Rxc1 {[%clk 0:01:19]} 42. Rxh5 {[%clk 0:00:42]}  Rc2 {[%clk 0:01:18]} 43. Rh8+ {[%clk 0:00:40]}  Kf7 {[%clk 0:01:17]} 44. Rh7+ {[%clk 0:00:41]}  Ke8 {[%clk 0:01:16]} 45. h4 {[%clk 0:00:40]}  Rh2 {[%clk 0:01:12]} 46. h5 {[%clk 0:00:40]}  Na4 {[%clk 0:01:08]} 47. Be5 {[%clk 0:00:40]}  Rh3 {[%clk 0:01:04]} 48. h6 {[%clk 0:00:39]}  Nc5 {[%clk 0:00:57]} 49. Bd6 {[%clk 0:00:32]}  Nd7 {[%clk 0:00:49]} 50. Re7+ {[%clk 0:00:31]}  Kd8 {[%clk 0:00:49]} 51. Rxe6 {[%clk 0:00:32]}  a5 {[%clk 0:00:42]} 52. Rg6 {[%clk 0:00:32]}  Ke8 {[%clk 0:00:39]} 53. e5 {[%clk 0:00:27]}  Rh1 {[%clk 0:00:17]} 54. e6 {[%clk 0:00:25]}  Nf8 {[%clk 0:00:17]} 55. Bxf8 {[%clk 0:00:24]}  Kxf8 {[%clk 0:00:16]} 56. Ke4 {[%clk 0:00:23]}  Re1+ {[%clk 0:00:15]} 57. Kf5 {[%clk 0:00:24]}  Rh1 {[%clk 0:00:14]} 58. f4 {[%clk 0:00:24]}  Ke8 {[%clk 0:00:14]} 59. Kf6 {[%clk 0:00:23]} 1-0


[Site "https://www.chess.com"]

[Event "Titled Tuesday Blitz December 27 Early 2022"]
[White "Troltenier, Dirk"]
[Black "Shahaliyev, Ismayil"]
[WhiteFideId "4606400"]
[BlackFideId "13406388"]
[WhiteElo "2234"]
[BlackElo "2400"]
[Result "0-1"]
[Round "10"]
[TimeControl "180+2"]
[Date "2022.12.27"]
[WhiteClock "0:00:02"]
[BlackClock "0:00:24"]

1. e4 {[%clk 0:03:00]}  e6 {[%clk 0:02:40]} 2. d4 {[%clk 0:03:00]}  d5 {[%clk 0:02:39]} 3. e5 {[%clk 0:02:59]}  c5 {[%clk 0:02:39]} 4. c3 {[%clk 0:02:59]}  Qb6 {[%clk 0:02:39]} 5. Nf3 {[%clk 0:02:59]}  Bd7 {[%clk 0:02:40]} 6. a3 {[%clk 0:02:59]}  Bb5 {[%clk 0:02:39]} 7. c4 {[%clk 0:02:59]}  Bxc4 {[%clk 0:02:36]} 8. Bxc4 {[%clk 0:02:59]}  dxc4 {[%clk 0:02:37]} 9. d5 {[%clk 0:02:59]}  exd5 {[%clk 0:02:32]} 10. Qxd5 {[%clk 0:03:00]}  Nd7 {[%clk 0:02:22]} 11. O-O {[%clk 0:02:25]}  Ne7 {[%clk 0:02:20]} 12. Qxc4 {[%clk 0:02:25]}  Ng6 {[%clk 0:02:17]} 13. Nc3 {[%clk 0:02:21]}  Be7 {[%clk 0:02:11]} 14. Nd5 {[%clk 0:01:54]}  Qc6 {[%clk 0:02:10]} 15. e6 {[%clk 0:01:26]}  fxe6 {[%clk 0:02:03]} 16. Nxe7 {[%clk 0:01:26]}  Nxe7 {[%clk 0:02:03]} 17. Re1 {[%clk 0:01:22]}  Qd5 {[%clk 0:01:54]} 18. Qg4 {[%clk 0:01:04]}  O-O {[%clk 0:01:36]} 19. Qxe6+ {[%clk 0:00:52]}  Qxe6 {[%clk 0:01:36]} 20. Rxe6 {[%clk 0:00:53]}  Nd5 {[%clk 0:01:26]} 21. Bg5 {[%clk 0:00:38]}  Rae8 {[%clk 0:01:23]} 22. Rae1 {[%clk 0:00:37]}  Rxe6 {[%clk 0:01:21]} 23. Rxe6 {[%clk 0:00:38]}  h6 {[%clk 0:01:19]} 24. Be3 {[%clk 0:00:35]}  b6 {[%clk 0:01:07]} 25. Rd6 {[%clk 0:00:30]}  N7f6 {[%clk 0:01:01]} 26. Ne5 {[%clk 0:00:19]}  Nxe3 {[%clk 0:00:54]} 27. fxe3 {[%clk 0:00:19]}  Re8 {[%clk 0:00:55]} 28. Nc4 {[%clk 0:00:15]}  Kf8 {[%clk 0:00:55]} 29. a4 {[%clk 0:00:11]}  Ke7 {[%clk 0:00:49]} 30. Rd3 {[%clk 0:00:09]}  Ne4 {[%clk 0:00:46]} 31. b3 {[%clk 0:00:09]}  Ke6 {[%clk 0:00:43]} 32. g3 {[%clk 0:00:09]}  g5 {[%clk 0:00:42]} 33. Kg2 {[%clk 0:00:09]}  g4 {[%clk 0:00:42]} 34. h3 {[%clk 0:00:09]}  h5 {[%clk 0:00:42]} 35. hxg4 {[%clk 0:00:07]}  hxg4 {[%clk 0:00:43]} 36. Nd2 {[%clk 0:00:07]}  Nd6 {[%clk 0:00:38]} 37. Nc4 {[%clk 0:00:02]}  Nf5 {[%clk 0:00:28]} 38. e4 {[%clk 0:00:01]}  Nd4 {[%clk 0:00:28]} 39. Ne3 {[%clk 0:00:02]}  Rg8 {[%clk 0:00:24]} 0-1


[Site "https://www.chess.com"]

[Event "Titled Tuesday Blitz December 27 Early 2022"]
[White "Turzo, Attila"]
[Black "Sadovsky, Artem"]
[WhiteFideId "704954"]
[BlackFideId "4155840"]
[WhiteElo "2279"]
[BlackElo "2276"]
[Result "0-1"]
[Round "10"]
[TimeControl "180+2"]
[Date "2022.12.27"]
[WhiteClock "0:00:02"]
[BlackClock "0:01:18"]

1. d4 {[%clk 0:03:00]}  g5 {[%clk 0:02:44]} 2. Bxg5 {[%clk 0:02:58]}  Bg7 {[%clk 0:02:45]} 3. c3 {[%clk 0:02:51]}  c5 {[%clk 0:02:45]} 4. dxc5 {[%clk 0:02:46]}  Qc7 {[%clk 0:02:45]} 5. Nf3 {[%clk 0:02:31]}  Qxc5 {[%clk 0:02:45]} 6. e4 {[%clk 0:02:27]}  Nf6 {[%clk 0:02:41]} 7. Nbd2 {[%clk 0:02:27]}  Ng4 {[%clk 0:02:41]} 8. Bh4 {[%clk 0:02:21]}  Nc6 {[%clk 0:02:37]} 9. Be2 {[%clk 0:02:10]}  Bf6 {[%clk 0:02:32]} 10. O-O {[%clk 0:02:01]}  h5 {[%clk 0:02:29]} 11. Nb3 {[%clk 0:01:51]}  Qb6 {[%clk 0:02:25]} 12. Bxf6 {[%clk 0:01:42]}  Nxf6 {[%clk 0:02:26]} 13. Bd3 {[%clk 0:01:30]}  d6 {[%clk 0:02:25]} 14. Nfd4 {[%clk 0:01:28]}  Ne5 {[%clk 0:02:24]} 15. Kh1 {[%clk 0:01:23]}  h4 {[%clk 0:02:23]} 16. Bb5+ {[%clk 0:01:16]}  Kf8 {[%clk 0:02:22]} 17. Qe2 {[%clk 0:01:13]}  h3 {[%clk 0:02:21]} 18. g3 {[%clk 0:01:10]}  a6 {[%clk 0:02:18]} 19. Bd3 {[%clk 0:01:05]}  Nxd3 {[%clk 0:02:17]} 20. Qxd3 {[%clk 0:01:05]}  e5 {[%clk 0:02:17]} 21. Nc2 {[%clk 0:00:54]}  Bd7 {[%clk 0:02:12]} 22. Ne3 {[%clk 0:00:53]}  Bc6 {[%clk 0:01:52]} 23. f3 {[%clk 0:00:51]}  Rd8 {[%clk 0:01:50]} 24. c4 {[%clk 0:00:44]}  Qc7 {[%clk 0:01:46]} 25. a4 {[%clk 0:00:38]}  a5 {[%clk 0:01:46]} 26. Nd2 {[%clk 0:00:27]}  Nd7 {[%clk 0:01:41]} 27. b3 {[%clk 0:00:20]}  Nc5 {[%clk 0:01:41]} 28. Qe2 {[%clk 0:00:21]}  Qd7 {[%clk 0:01:38]} 29. Rab1 {[%clk 0:00:20]}  b6 {[%clk 0:01:37]} 30. Nd5 {[%clk 0:00:20]}  Bxd5 {[%clk 0:01:38]} 31. exd5 {[%clk 0:00:19]}  Qf5 {[%clk 0:01:37]} 32. Ne4 {[%clk 0:00:18]}  Qg6 {[%clk 0:01:35]} 33. Nxc5 {[%clk 0:00:17]}  bxc5 {[%clk 0:01:36]} 34. f4 {[%clk 0:00:17]}  exf4 {[%clk 0:01:33]} 35. Rbe1 {[%clk 0:00:11]}  fxg3 {[%clk 0:01:33]} 36. Qe7+ {[%clk 0:00:10]}  Kg7 {[%clk 0:01:33]} 37. hxg3 {[%clk 0:00:09]}  Rhe8 {[%clk 0:01:30]} 38. Qxe8 {[%clk 0:00:06]}  Rxe8 {[%clk 0:01:30]} 39. Rxe8 {[%clk 0:00:06]}  Qc2 {[%clk 0:01:31]} 40. Rg1 {[%clk 0:00:05]}  Qf2 {[%clk 0:01:23]} 41. Re7 {[%clk 0:00:04]}  Kf8 {[%clk 0:01:22]} 42. Ree1 {[%clk 0:00:03]}  f5 {[%clk 0:01:21]} 43. Ref1 {[%clk 0:00:03]}  Qc2 {[%clk 0:01:21]} 44. Rf3 {[%clk 0:00:02]}  Kg7 {[%clk 0:01:18]} 0-1


[Site "https://www.chess.com"]

[Event "Titled Tuesday Blitz December 27 Early 2022"]
[White "Vakhlamov, Igor L."]
[Black "Belozerov, Andrei"]
[WhiteFideId "24126748"]
[BlackFideId "4120213"]
[WhiteElo "2413"]
[BlackElo "2461"]
[Result "0-1"]
[Round "10"]
[TimeControl "180+2"]
[Date "2022.12.27"]
[WhiteClock "0:00:31"]
[BlackClock "0:00:56"]

1. e4 {[%clk 0:03:00]}  c5 {[%clk 0:02:58]} 2. Nf3 {[%clk 0:03:00]}  Nc6 {[%clk 0:02:59]} 3. Nc3 {[%clk 0:03:00]}  g6 {[%clk 0:02:53]} 4. d4 {[%clk 0:03:00]}  cxd4 {[%clk 0:02:53]} 5. Nxd4 {[%clk 0:03:01]}  Bg7 {[%clk 0:02:53]} 6. Nxc6 {[%clk 0:03:01]}  bxc6 {[%clk 0:02:53]} 7. Bc4 {[%clk 0:03:02]}  d6 {[%clk 0:02:45]} 8. O-O {[%clk 0:03:01]}  Nf6 {[%clk 0:02:41]} 9. Bg5 {[%clk 0:02:57]}  O-O {[%clk 0:02:40]} 10. Re1 {[%clk 0:02:58]}  Ng4 {[%clk 0:02:27]} 11. Qd2 {[%clk 0:02:52]}  Be6 {[%clk 0:02:13]} 12. Bb3 {[%clk 0:02:51]}  a5 {[%clk 0:02:12]} 13. Rad1 {[%clk 0:02:50]}  a4 {[%clk 0:01:52]} 14. Nxa4 {[%clk 0:02:41]}  c5 {[%clk 0:01:44]} 15. Bxe6 {[%clk 0:02:35]}  fxe6 {[%clk 0:01:43]} 16. b3 {[%clk 0:02:03]}  Rxf2 {[%clk 0:01:36]} 17. Qd3 {[%clk 0:01:35]}  Bd4 {[%clk 0:01:34]} 18. Kh1 {[%clk 0:01:35]}  Rf5 {[%clk 0:00:59]} 19. Bh4 {[%clk 0:01:34]}  Rh5 {[%clk 0:00:59]} 20. c3 {[%clk 0:00:36]}  Rxh4 {[%clk 0:00:56]} 21. Qf3 {[%clk 0:00:31]}  Rxh2# {[%clk 0:00:56]} 0-1


[Site "https://www.chess.com"]